[Event "Titled Tuesday Blitz May 30 Late 2023"]
[White "Toncheva, Nadya"]
[Black "Bulgurlu, Okan"]
[WhiteFideId "2924056"]
[BlackFideId "6352316"]
[WhiteElo "2101"]
[BlackElo "2294"]
[Result "1-0"]
[Round "02"]
[TimeControl "180+2"]
[Date "2023.05.31"]
[WhiteClock "0:01:26"]
[BlackClock "0:01:36"]

1. e4 {[%clk 0:03:00]}  c5 {[%clk 0:02:59]} 2. Nf3 {[%clk 0:03:01]}  g6 {[%clk 0:02:58]} 3. c3 {[%clk 0:03:01]}  d5 {[%clk 0:02:58]} 4. exd5 {[%clk 0:03:02]}  Qxd5 {[%clk 0:02:59]} 5. d4 {[%clk 0:03:02]}  Bg7 {[%clk 0:02:59]} 6. Be3 {[%clk 0:03:03]}  Nc6 {[%clk 0:02:59]} 7. Nbd2 {[%clk 0:03:01]}  cxd4 {[%clk 0:02:59]} 8. Bc4 {[%clk 0:02:55]}  Qa5 {[%clk 0:02:58]} 9. cxd4 {[%clk 0:02:52]}  Nf6 {[%clk 0:02:58]} 10. O-O {[%clk 0:02:45]}  O-O {[%clk 0:02:58]} 11. Nb3 {[%clk 0:02:45]}  Qd8 {[%clk 0:02:57]} 12. a3 {[%clk 0:02:24]}  Nd5 {[%clk 0:02:57]} 13. Qe2 {[%clk 0:02:23]}  Bg4 {[%clk 0:02:56]} 14. h3 {[%clk 0:02:20]}  Bf5 {[%clk 0:02:55]} 15. Rfd1 {[%clk 0:02:16]}  a6 {[%clk 0:02:51]} 16. Nc5 {[%clk 0:02:15]}  b5 {[%clk 0:02:50]} 17. Ba2 {[%clk 0:02:12]}  Nxe3 {[%clk 0:02:11]} 18. fxe3 {[%clk 0:02:10]}  Qc7 {[%clk 0:01:53]} 19. Rac1 {[%clk 0:02:02]}  Qg3 {[%clk 0:01:53]} 20. Qf2 {[%clk 0:01:50]}  Qxf2+ {[%clk 0:01:53]} 21. Kxf2 {[%clk 0:01:51]}  Rfc8 {[%clk 0:01:49]} 22. e4 {[%clk 0:01:46]}  Be6 {[%clk 0:01:35]} 23. Nxe6 {[%clk 0:01:45]}  fxe6 {[%clk 0:01:35]} 24. Bxe6+ {[%clk 0:01:46]}  Kf8 {[%clk 0:01:36]} 25. Bxc8 {[%clk 0:01:43]}  Rxc8 {[%clk 0:01:36]} 26. d5 {[%clk 0:01:43]}  Na7 {[%clk 0:01:37]} 27. Rxc8+ {[%clk 0:01:43]}  Nxc8 {[%clk 0:01:37]} 28. Nd4 {[%clk 0:01:41]}  Nd6 {[%clk 0:01:36]} 29. Ne6+ {[%clk 0:01:41]}  Kf7 {[%clk 0:01:36]} 30. Nxg7 {[%clk 0:01:32]}  Kxg7 {[%clk 0:01:36]} 31. e5 {[%clk 0:01:32]}  Nc4 {[%clk 0:01:36]} 32. d6 {[%clk 0:01:26]} 1-0


[Site "https://www.chess.com"]

[Event "Titled Tuesday Blitz May 30 Late 2023"]
[White "KVAIDAN"]
[Black "Ljukin, Sergei"]
[BlackFideId "14102200"]
[WhiteElo "2290"]
[BlackElo "2312"]
[Result "0-1"]
[Round "02"]
[TimeControl "180+2"]
[Date "2023.05.31"]
[WhiteClock "0:02:25"]
[BlackClock "0:02:08"]

1. f4 {[%clk 0:03:00]}  d5 {[%clk 0:02:59]} 2. Nf3 {[%clk 0:02:59]}  Nf6 {[%clk 0:03:00]} 3. e3 {[%clk 0:03:00]}  Bf5 {[%clk 0:03:00]} 4. Be2 {[%clk 0:02:59]}  e6 {[%clk 0:02:59]} 5. O-O {[%clk 0:02:58]}  Bc5 {[%clk 0:02:58]} 6. b3 {[%clk 0:02:58]}  Nc6 {[%clk 0:02:57]} 7. Bb2 {[%clk 0:02:58]}  d4 {[%clk 0:02:54]} 8. exd4 {[%clk 0:02:53]}  Nxd4 {[%clk 0:02:54]} 9. Kh1 {[%clk 0:02:49]}  Nxc2 {[%clk 0:02:51]} 10. d4 {[%clk 0:02:43]}  Be7 {[%clk 0:02:43]} 11. Nh4 {[%clk 0:02:39]}  Nxa1 {[%clk 0:02:41]} 12. Nxf5 {[%clk 0:02:38]}  exf5 {[%clk 0:02:41]} 13. Bxa1 {[%clk 0:02:39]}  Nd5 {[%clk 0:02:37]} 14. Bd3 {[%clk 0:02:33]}  Ne3 {[%clk 0:02:31]} 15. Qe2 {[%clk 0:02:32]}  Nxf1 {[%clk 0:02:31]} 16. Bxf5 {[%clk 0:02:30]}  O-O {[%clk 0:02:19]} 17. Qxf1 {[%clk 0:02:31]}  Bf6 {[%clk 0:02:16]} 18. Qd3 {[%clk 0:02:29]}  g6 {[%clk 0:02:15]} 19. Be4 {[%clk 0:02:30]}  c5 {[%clk 0:02:09]} 20. Bxb7 {[%clk 0:02:25]}  Rb8 {[%clk 0:02:09]} 21. Ba6 {[%clk 0:02:25]}  Bxd4 {[%clk 0:02:07]} 22. Bxd4 {[%clk 0:02:25]}  Qxd4 {[%clk 0:02:07]} 23. Nd2 {[%clk 0:02:25]}  Qxd3 {[%clk 0:02:07]} 24. Bxd3 {[%clk 0:02:25]}  Rfd8 {[%clk 0:02:08]} 0-1


[Site "https://www.chess.com"]

[Event "Titled Tuesday Blitz May 30 Late 2023"]
[White "Jovic, Stanoje"]
[Black "The_Straightforward_Rook"]
[WhiteFideId "905020"]
[WhiteElo "2236"]
[BlackElo "2283"]
[Result "1-0"]
[Round "02"]
[TimeControl "180+2"]
[Date "2023.05.31"]
[WhiteClock "0:01:31"]
[BlackClock "0:01:42"]

1. c4 {[%clk 0:03:00]}  e5 {[%clk 0:02:51]} 2. g3 {[%clk 0:03:00]}  Nf6 {[%clk 0:02:51]} 3. Bg2 {[%clk 0:03:01]}  c6 {[%clk 0:02:51]} 4. d4 {[%clk 0:03:00]}  e4 {[%clk 0:02:51]} 5. Nc3 {[%clk 0:03:00]}  d5 {[%clk 0:02:50]} 6. Qb3 {[%clk 0:02:58]}  Nbd7 {[%clk 0:02:41]} 7. f3 {[%clk 0:02:57]}  exf3 {[%clk 0:02:35]} 8. Nxf3 {[%clk 0:02:57]}  dxc4 {[%clk 0:02:35]} 9. Qxc4 {[%clk 0:02:57]}  Be7 {[%clk 0:02:34]} 10. e4 {[%clk 0:02:55]}  O-O {[%clk 0:02:33]} 11. O-O {[%clk 0:02:52]}  c5 {[%clk 0:02:30]} 12. d5 {[%clk 0:02:48]}  Ng4 {[%clk 0:02:28]} 13. Bf4 {[%clk 0:02:39]}  a6 {[%clk 0:02:24]} 14. h3 {[%clk 0:02:37]}  b5 {[%clk 0:02:22]} 15. Qe2 {[%clk 0:02:31]}  Ngf6 {[%clk 0:02:16]} 16. e5 {[%clk 0:02:24]}  Ne8 {[%clk 0:02:15]} 17. d6 {[%clk 0:02:24]}  Nxd6 {[%clk 0:02:08]} 18. exd6 {[%clk 0:02:24]}  Bf6 {[%clk 0:02:09]} 19. Nd5 {[%clk 0:02:17]}  Bb7 {[%clk 0:02:06]} 20. Nxf6+ {[%clk 0:02:15]}  Qxf6 {[%clk 0:02:07]} 21. Qe7 {[%clk 0:02:12]}  Rad8 {[%clk 0:01:57]} 22. Qxf6 {[%clk 0:02:05]}  Nxf6 {[%clk 0:01:58]} 23. Rad1 {[%clk 0:02:00]}  h6 {[%clk 0:01:54]} 24. Ne5 {[%clk 0:01:57]}  Bxg2 {[%clk 0:01:53]} 25. Kxg2 {[%clk 0:01:57]}  c4 {[%clk 0:01:50]} 26. Nc6 {[%clk 0:01:50]}  Rd7 {[%clk 0:01:49]} 27. Bxh6 {[%clk 0:01:44]}  Ne4 {[%clk 0:01:46]} 28. Bf4 {[%clk 0:01:38]}  Nc5 {[%clk 0:01:45]} 29. Ne7+ {[%clk 0:01:34]}  Kh7 {[%clk 0:01:44]} 30. Rd5 {[%clk 0:01:32]}  Nd3 {[%clk 0:01:42]} 31. Rh5# {[%clk 0:01:31]} 1-0


[Site "https://www.chess.com"]

[Event "Titled Tuesday Blitz May 30 Late 2023"]
[White "Karas, Marek"]
[Black "Harish, Neeraj"]
[WhiteFideId "14928558"]
[BlackFideId "30958130"]
[WhiteElo "2233"]
[BlackElo "1879"]
[Result "1-0"]
[Round "02"]
[TimeControl "180+2"]
[Date "2023.05.31"]
[WhiteClock "0:00:19"]
[BlackClock "0:00:02"]

1. e4 {[%clk 0:03:00]}  c5 {[%clk 0:02:56]} 2. d4 {[%clk 0:02:56]}  cxd4 {[%clk 0:02:51]} 3. c3 {[%clk 0:02:56]}  Nf6 {[%clk 0:02:51]} 4. e5 {[%clk 0:02:48]}  Nd5 {[%clk 0:02:51]} 5. cxd4 {[%clk 0:02:49]}  Nc6 {[%clk 0:02:48]} 6. Nc3 {[%clk 0:02:41]}  Nxc3 {[%clk 0:02:23]} 7. bxc3 {[%clk 0:02:42]}  d5 {[%clk 0:02:24]} 8. Ba3 {[%clk 0:02:31]}  Bf5 {[%clk 0:02:06]} 9. Nf3 {[%clk 0:02:25]}  Rc8 {[%clk 0:02:01]} 10. Qb3 {[%clk 0:02:22]}  Qd7 {[%clk 0:01:23]} 11. Be2 {[%clk 0:02:12]}  e6 {[%clk 0:01:23]} 12. Bxf8 {[%clk 0:02:06]}  Kxf8 {[%clk 0:01:24]} 13. O-O {[%clk 0:02:05]}  h6 {[%clk 0:01:08]} 14. Rfd1 {[%clk 0:01:58]}  Kg8 {[%clk 0:01:07]} 15. h3 {[%clk 0:01:48]}  Kh7 {[%clk 0:01:01]} 16. Rac1 {[%clk 0:01:38]}  Na5 {[%clk 0:00:46]} 17. Qa3 {[%clk 0:01:34]}  b6 {[%clk 0:00:34]} 18. g4 {[%clk 0:01:27]}  Be4 {[%clk 0:00:26]} 19. Nd2 {[%clk 0:01:26]}  Bg6 {[%clk 0:00:24]} 20. h4 {[%clk 0:01:26]}  f6 {[%clk 0:00:15]} 21. exf6 {[%clk 0:01:24]}  gxf6 {[%clk 0:00:16]} 22. c4 {[%clk 0:01:18]}  Nxc4 {[%clk 0:00:12]} 23. Nxc4 {[%clk 0:01:19]}  dxc4 {[%clk 0:00:12]} 24. Bxc4 {[%clk 0:01:19]}  e5 {[%clk 0:00:11]} 25. Qf3 {[%clk 0:01:11]}  e4 {[%clk 0:00:10]} 26. Qf4 {[%clk 0:01:08]}  Kg7 {[%clk 0:00:06]} 27. Bb3 {[%clk 0:00:48]}  Rhf8 {[%clk 0:00:05]} 28. d5 {[%clk 0:00:46]}  Rxc1 {[%clk 0:00:03]} 29. Rxc1 {[%clk 0:00:45]}  Rc8 {[%clk 0:00:02]} 30. Rxc8 {[%clk 0:00:36]}  Qxc8 {[%clk 0:00:03]} 31. Kh2 {[%clk 0:00:32]}  Qd7 {[%clk 0:00:02]} 32. d6 {[%clk 0:00:28]}  f5 {[%clk 0:00:02]} 33. Qe5+ {[%clk 0:00:27]}  Kh7 {[%clk 0:00:02]} 34. h5 {[%clk 0:00:24]}  Bf7 {[%clk 0:00:01]} 35. Bxf7 {[%clk 0:00:22]}  Qxf7 {[%clk 0:00:02]} 36. Qxf5+ {[%clk 0:00:23]}  Kg7 {[%clk 0:00:01]} 37. Qxf7+ {[%clk 0:00:19]}  Kxf7 {[%clk 0:00:02]} 38. g5 {[%clk 0:00:19]}  hxg5 {[%clk 0:00:01]} 39. h6 {[%clk 0:00:18]}  g4 {[%clk 0:00:01]} 40. h7 {[%clk 0:00:19]}  g3+ {[%clk 0:00:02]} 41. Kxg3 {[%clk 0:00:19]} 1-0


[Site "https://www.chess.com"]

[Event "Titled Tuesday Blitz May 30 Late 2023"]
[White "Leschinsky, Gary"]
[Black "Goffredo_Fofi"]
[WhiteFideId "30951321"]
[WhiteElo "1855"]
[BlackElo "2479"]
[Result "1-0"]
[Round "02"]
[TimeControl "180+2"]
[Date "2023.05.31"]
[WhiteClock "0:00:37"]
[BlackClock "0:00:05"]

1. d4 {[%clk 0:03:00]}  g6 {[%clk 0:03:00]} 2. e4 {[%clk 0:02:53]}  Bg7 {[%clk 0:03:00]} 3. Nc3 {[%clk 0:02:52]}  c6 {[%clk 0:03:01]} 4. Be3 {[%clk 0:02:51]}  d5 {[%clk 0:03:01]} 5. e5 {[%clk 0:02:46]}  Nh6 {[%clk 0:02:58]} 6. f4 {[%clk 0:02:43]}  f6 {[%clk 0:02:55]} 7. Nf3 {[%clk 0:02:43]}  O-O {[%clk 0:02:55]} 8. Be2 {[%clk 0:02:42]}  Ng4 {[%clk 0:02:44]} 9. Bg1 {[%clk 0:02:39]}  fxe5 {[%clk 0:02:43]} 10. fxe5 {[%clk 0:02:38]}  Bh6 {[%clk 0:02:40]} 11. h3 {[%clk 0:02:36]}  Ne3 {[%clk 0:02:38]} 12. Bxe3 {[%clk 0:02:35]}  Bxe3 {[%clk 0:02:39]} 13. Qd3 {[%clk 0:02:35]}  Bf4 {[%clk 0:02:36]} 14. O-O {[%clk 0:02:36]}  Na6 {[%clk 0:02:12]} 15. a3 {[%clk 0:02:22]}  Nc7 {[%clk 0:02:12]} 16. Rae1 {[%clk 0:02:11]}  Bf5 {[%clk 0:01:47]} 17. Qd1 {[%clk 0:02:10]}  Bg3 {[%clk 0:01:47]} 18. Qd2 {[%clk 0:02:10]}  Bxe1 {[%clk 0:01:46]} 19. Rxe1 {[%clk 0:02:11]}  Ne6 {[%clk 0:01:44]} 20. Qh6 {[%clk 0:01:39]}  Rf7 {[%clk 0:01:08]} 21. Bd1 {[%clk 0:01:30]}  Qf8 {[%clk 0:01:01]} 22. Qd2 {[%clk 0:01:27]}  Rd8 {[%clk 0:00:58]} 23. Nh4 {[%clk 0:01:27]}  Be4 {[%clk 0:00:54]} 24. Bg4 {[%clk 0:01:18]}  Bf5 {[%clk 0:00:37]} 25. Nxf5 {[%clk 0:01:13]}  gxf5 {[%clk 0:00:37]} 26. Bh5 {[%clk 0:01:13]}  Rg7 {[%clk 0:00:37]} 27. Rf1 {[%clk 0:01:14]}  Kh8 {[%clk 0:00:33]} 28. Ne2 {[%clk 0:01:13]}  Rg5 {[%clk 0:00:21]} 29. Bf3 {[%clk 0:00:59]}  Qh6 {[%clk 0:00:20]} 30. Qb4 {[%clk 0:00:53]}  Qg7 {[%clk 0:00:18]} 31. Qxb7 {[%clk 0:00:51]}  Rg8 {[%clk 0:00:18]} 32. Rf2 {[%clk 0:00:50]}  Nd8 {[%clk 0:00:16]} 33. Qxa7 {[%clk 0:00:48]}  Rg3 {[%clk 0:00:16]} 34. Nxg3 {[%clk 0:00:46]}  Qxg3 {[%clk 0:00:16]} 35. Qxe7 {[%clk 0:00:46]}  Qg7 {[%clk 0:00:06]} 36. Qxg7+ {[%clk 0:00:44]}  Rxg7 {[%clk 0:00:07]} 37. c3 {[%clk 0:00:43]}  Ne6 {[%clk 0:00:05]} 38. Bd1 {[%clk 0:00:41]}  f4 {[%clk 0:00:05]} 39. Bg4 {[%clk 0:00:40]}  Ng5 {[%clk 0:00:05]} 40. Rxf4 {[%clk 0:00:38]}  Rb7 {[%clk 0:00:05]} 41. b4 {[%clk 0:00:37]}  Ra7 {[%clk 0:00:05]} 42. Rf6 {[%clk 0:00:37]}  Rxa3 {[%clk 0:00:04]} 43. Rxc6 {[%clk 0:00:37]}  Rxc3 {[%clk 0:00:05]} 44. Rxc3 {[%clk 0:00:37]} 1-0


[Site "https://www.chess.com"]

[Event "Titled Tuesday Blitz May 30 Late 2023"]
[White "Kokoszczynski, Jan"]
[Black "Andreassen, Lars"]
[WhiteFideId "1174460"]
[BlackFideId "1504878"]
[WhiteElo "2139"]
[BlackElo "2119"]
[Result "0-1"]
[Round "02"]
[TimeControl "180+2"]
[Date "2023.05.31"]
[WhiteClock "0:01:05"]
[BlackClock "0:00:34"]

1. c4 {[%clk 0:03:00]}  e6 {[%clk 0:02:57]} 2. d4 {[%clk 0:02:57]}  d5 {[%clk 0:02:56]} 3. Nc3 {[%clk 0:02:58]}  c5 {[%clk 0:02:56]} 4. cxd5 {[%clk 0:02:57]}  cxd4 {[%clk 0:02:57]} 5. Qxd4 {[%clk 0:02:56]}  Nc6 {[%clk 0:02:56]} 6. Qa4 {[%clk 0:02:47]}  exd5 {[%clk 0:02:56]} 7. e3 {[%clk 0:02:47]}  Nf6 {[%clk 0:02:56]} 8. Nf3 {[%clk 0:02:47]}  Be7 {[%clk 0:02:55]} 9. Bb5 {[%clk 0:02:47]}  Bd7 {[%clk 0:02:50]} 10. O-O {[%clk 0:02:47]}  a6 {[%clk 0:02:50]} 11. Bxc6 {[%clk 0:02:44]}  Bxc6 {[%clk 0:02:47]} 12. Qf4 {[%clk 0:02:42]}  O-O {[%clk 0:02:46]} 13. Rd1 {[%clk 0:02:42]}  Bd6 {[%clk 0:02:43]} 14. Qh4 {[%clk 0:02:41]}  h6 {[%clk 0:02:42]} 15. b3 {[%clk 0:02:38]}  Re8 {[%clk 0:02:41]} 16. Bb2 {[%clk 0:02:38]}  Ne4 {[%clk 0:02:30]} 17. Qxd8 {[%clk 0:02:33]}  Raxd8 {[%clk 0:02:30]} 18. Nd4 {[%clk 0:02:31]}  g6 {[%clk 0:01:46]} 19. Rac1 {[%clk 0:02:30]}  f5 {[%clk 0:01:39]} 20. g3 {[%clk 0:02:17]}  Kf7 {[%clk 0:01:35]} 21. Nce2 {[%clk 0:02:12]}  Bd7 {[%clk 0:01:29]} 22. Kg2 {[%clk 0:02:09]}  Rc8 {[%clk 0:01:29]} 23. h4 {[%clk 0:02:02]}  g5 {[%clk 0:01:26]} 24. hxg5 {[%clk 0:02:02]}  hxg5 {[%clk 0:01:27]} 25. Rxc8 {[%clk 0:02:00]}  Rxc8 {[%clk 0:01:26]} 26. Rh1 {[%clk 0:02:01]}  Kg6 {[%clk 0:01:20]} 27. Rd1 {[%clk 0:01:55]}  Be5 {[%clk 0:01:13]} 28. Ba3 {[%clk 0:01:36]}  Nc3 {[%clk 0:01:04]} 29. Nxc3 {[%clk 0:01:34]}  Rxc3 {[%clk 0:01:05]} 30. Nf3 {[%clk 0:01:33]}  Bf6 {[%clk 0:00:59]} 31. Rd2 {[%clk 0:01:25]}  Bc6 {[%clk 0:00:53]} 32. Bb2 {[%clk 0:01:17]}  d4 {[%clk 0:00:43]} 33. exd4 {[%clk 0:01:13]}  Bxf3+ {[%clk 0:00:38]} 34. Kf1 {[%clk 0:01:12]}  Rc7 {[%clk 0:00:35]} 35. Ke1 {[%clk 0:01:06]}  Re7+ {[%clk 0:00:35]} 36. Kf1 {[%clk 0:01:05]}  Rh7 {[%clk 0:00:34]} 0-1


[Site "https://www.chess.com"]

[Event "Titled Tuesday Blitz May 30 Late 2023"]
[White "Filgueira, Hernan"]
[Black "Kovacevic, Radmila"]
[WhiteFideId "101770"]
[BlackFideId "933171"]
[WhiteElo "2363"]
[BlackElo "2194"]
[Result "1-0"]
[Round "02"]
[TimeControl "180+2"]
[Date "2023.05.31"]
[WhiteClock "0:02:13"]
[BlackClock "0:01:05"]

1. d4 {[%clk 0:02:56]}  e5 {[%clk 0:03:00]} 2. dxe5 {[%clk 0:02:56]}  Nc6 {[%clk 0:02:59]} 3. Nf3 {[%clk 0:02:57]}  Qe7 {[%clk 0:02:56]} 4. Bf4 {[%clk 0:02:57]}  Qb4+ {[%clk 0:02:49]} 5. Bd2 {[%clk 0:02:56]}  Qxb2 {[%clk 0:02:48]} 6. Nc3 {[%clk 0:02:57]}  Bb4 {[%clk 0:02:46]} 7. Rb1 {[%clk 0:02:56]}  Qxc3 {[%clk 0:02:46]} 8. Bxc3 {[%clk 0:02:55]}  Bxc3+ {[%clk 0:02:47]} 9. Nd2 {[%clk 0:02:55]}  Bxe5 {[%clk 0:02:47]} 10. e3 {[%clk 0:02:54]}  Nf6 {[%clk 0:02:44]} 11. Bd3 {[%clk 0:02:52]}  O-O {[%clk 0:02:43]} 12. O-O {[%clk 0:02:51]}  a6 {[%clk 0:02:42]} 13. f4 {[%clk 0:02:50]}  Bc3 {[%clk 0:02:42]} 14. Ne4 {[%clk 0:02:48]}  Nxe4 {[%clk 0:02:30]} 15. Bxe4 {[%clk 0:02:48]}  Bf6 {[%clk 0:02:29]} 16. Bd5 {[%clk 0:02:40]}  d6 {[%clk 0:02:28]} 17. e4 {[%clk 0:02:40]}  Bd4+ {[%clk 0:02:18]} 18. Kh1 {[%clk 0:02:39]}  Bb6 {[%clk 0:02:17]} 19. e5 {[%clk 0:02:31]}  dxe5 {[%clk 0:01:56]} 20. f5 {[%clk 0:02:31]}  Nd4 {[%clk 0:01:38]} 21. f6 {[%clk 0:02:28]}  c6 {[%clk 0:01:30]} 22. Be4 {[%clk 0:02:25]}  Bc7 {[%clk 0:01:21]} 23. Qh5 {[%clk 0:02:20]}  g6 {[%clk 0:01:08]} 24. Qh6 {[%clk 0:02:19]}  Ne6 {[%clk 0:01:08]} 25. Rf3 {[%clk 0:02:13]}  Bd8 {[%clk 0:01:05]} 26. Rh3 {[%clk 0:02:13]} 1-0


[Site "https://www.chess.com"]

[Event "Titled Tuesday Blitz May 30 Late 2023"]
[White "Sanhueza, Cristian"]
[Black "Schut, Han"]
[WhiteFideId "116815"]
[BlackFideId "1005561"]
[WhiteElo "2174"]
[BlackElo "2024"]
[Result "1-0"]
[Round "02"]
[TimeControl "180+2"]
[Date "2023.05.31"]
[WhiteClock "0:00:08"]
[BlackClock "0:00:20"]

1. e4 {[%clk 0:02:57]}  c5 {[%clk 0:02:53]} 2. Nf3 {[%clk 0:02:57]}  d6 {[%clk 0:02:52]} 3. d4 {[%clk 0:02:57]}  cxd4 {[%clk 0:02:53]} 4. Nxd4 {[%clk 0:02:57]}  Nf6 {[%clk 0:02:54]} 5. Nc3 {[%clk 0:02:57]}  a6 {[%clk 0:02:50]} 6. Be3 {[%clk 0:02:56]}  e5 {[%clk 0:02:50]} 7. Nf3 {[%clk 0:02:52]}  Qc7 {[%clk 0:02:45]} 8. h3 {[%clk 0:02:47]}  Be7 {[%clk 0:02:45]} 9. Be2 {[%clk 0:02:44]}  Be6 {[%clk 0:02:45]} 10. O-O {[%clk 0:02:44]}  Nbd7 {[%clk 0:02:44]} 11. a4 {[%clk 0:02:41]}  Rc8 {[%clk 0:02:43]} 12. Qd2 {[%clk 0:02:35]}  Qc6 {[%clk 0:02:43]} 13. Ng5 {[%clk 0:02:24]}  O-O {[%clk 0:02:23]} 14. a5 {[%clk 0:01:53]}  d5 {[%clk 0:02:12]} 15. exd5 {[%clk 0:01:41]}  Bxd5 {[%clk 0:02:13]} 16. Nxd5 {[%clk 0:01:23]}  Nxd5 {[%clk 0:02:13]} 17. c3 {[%clk 0:01:21]}  Nxe3 {[%clk 0:01:34]} 18. Qxe3 {[%clk 0:01:21]}  f6 {[%clk 0:01:17]} 19. Nf3 {[%clk 0:01:09]}  Rfd8 {[%clk 0:01:15]} 20. Rfd1 {[%clk 0:01:06]}  Nc5 {[%clk 0:01:14]} 21. Nh4 {[%clk 0:00:52]}  Nb3 {[%clk 0:01:04]} 22. Nf5 {[%clk 0:00:36]}  Bf8 {[%clk 0:00:55]} 23. Rxd8 {[%clk 0:00:21]}  Rxd8 {[%clk 0:00:56]} 24. Rd1 {[%clk 0:00:20]}  Rxd1+ {[%clk 0:00:51]} 25. Bxd1 {[%clk 0:00:21]}  Nxa5 {[%clk 0:00:50]} 26. b4 {[%clk 0:00:20]}  Nc4 {[%clk 0:00:49]} 27. Bb3 {[%clk 0:00:20]}  b5 {[%clk 0:00:50]} 28. Qd3 {[%clk 0:00:19]}  Qe6 {[%clk 0:00:44]} 29. Ne3 {[%clk 0:00:17]}  Qd6 {[%clk 0:00:39]} 30. Qxd6 {[%clk 0:00:14]}  Bxd6 {[%clk 0:00:40]} 31. Bxc4+ {[%clk 0:00:08]}  bxc4 {[%clk 0:00:40]} 32. Nxc4 {[%clk 0:00:09]}  Bc7 {[%clk 0:00:40]} 33. Kf1 {[%clk 0:00:10]}  Kf7 {[%clk 0:00:40]} 34. Ke2 {[%clk 0:00:10]}  Ke6 {[%clk 0:00:41]} 35. Kd3 {[%clk 0:00:11]}  Kd5 {[%clk 0:00:40]} 36. f3 {[%clk 0:00:11]}  f5 {[%clk 0:00:40]} 37. Ne3+ {[%clk 0:00:11]}  Kd6 {[%clk 0:00:35]} 38. Nxf5+ {[%clk 0:00:09]}  Ke6 {[%clk 0:00:25]} 39. Nxg7+ {[%clk 0:00:09]}  Kf6 {[%clk 0:00:22]} 40. Nh5+ {[%clk 0:00:10]}  Kg5 {[%clk 0:00:20]} 41. Ng3 {[%clk 0:00:07]}  Kf4 {[%clk 0:00:20]} 42. Ne2+ {[%clk 0:00:07]}  Kf5 {[%clk 0:00:20]} 43. h4 {[%clk 0:00:06]}  h5 {[%clk 0:00:19]} 44. Ng3+ {[%clk 0:00:05]}  Kg6 {[%clk 0:00:19]} 45. Ke4 {[%clk 0:00:06]}  Bb8 {[%clk 0:00:19]} 46. c4 {[%clk 0:00:06]}  Bc7 {[%clk 0:00:19]} 47. c5 {[%clk 0:00:06]}  Bb8 {[%clk 0:00:19]} 48. Nf5 {[%clk 0:00:06]}  Bc7 {[%clk 0:00:19]} 49. Ne7+ {[%clk 0:00:06]}  Kf6 {[%clk 0:00:18]} 50. Nd5+ {[%clk 0:00:07]}  Ke6 {[%clk 0:00:18]} 51. Nxc7+ {[%clk 0:00:08]}  Kd7 {[%clk 0:00:19]} 52. Nxa6 {[%clk 0:00:09]}  Kc6 {[%clk 0:00:20]} 53. Nb8+ {[%clk 0:00:08]} 1-0


[Site "https://www.chess.com"]

[Event "Titled Tuesday Blitz May 30 Late 2023"]
[White "Martinez, Ayelen"]
[Black "LangesNasenhaar"]
[WhiteFideId "118702"]
[WhiteElo "2125"]
[BlackElo "2468"]
[Result "0-1"]
[Round "02"]
[TimeControl "180+2"]
[Date "2023.05.31"]
[WhiteClock "0:00:01"]
[BlackClock "0:00:07"]

1. e4 {[%clk 0:02:51]}  d6 {[%clk 0:02:59]} 2. d4 {[%clk 0:02:51]}  Nf6 {[%clk 0:03:00]} 3. Nc3 {[%clk 0:02:52]}  Nbd7 {[%clk 0:03:01]} 4. Nf3 {[%clk 0:02:49]}  e5 {[%clk 0:03:01]} 5. g4 {[%clk 0:02:50]}  Nxg4 {[%clk 0:02:59]} 6. Rg1 {[%clk 0:02:50]}  Ngf6 {[%clk 0:02:59]} 7. Bc4 {[%clk 0:02:50]}  h6 {[%clk 0:02:59]} 8. Be3 {[%clk 0:02:38]}  c6 {[%clk 0:02:59]} 9. Qe2 {[%clk 0:02:08]}  b5 {[%clk 0:02:57]} 10. dxe5 {[%clk 0:01:53]}  dxe5 {[%clk 0:02:54]} 11. Bb3 {[%clk 0:01:53]}  Qc7 {[%clk 0:02:43]} 12. O-O-O {[%clk 0:01:47]}  g6 {[%clk 0:02:33]} 13. Kb1 {[%clk 0:01:15]}  Nc5 {[%clk 0:02:32]} 14. Bxc5 {[%clk 0:00:57]}  Bxc5 {[%clk 0:02:32]} 15. Rd2 {[%clk 0:00:33]}  Nh5 {[%clk 0:01:55]} 16. a4 {[%clk 0:00:28]}  a6 {[%clk 0:01:41]} 17. Qd1 {[%clk 0:00:19]}  Be7 {[%clk 0:01:19]} 18. a5 {[%clk 0:00:17]}  Nf4 {[%clk 0:01:15]} 19. Ne2 {[%clk 0:00:17]}  Ne6 {[%clk 0:01:10]} 20. Ng3 {[%clk 0:00:16]}  Nc5 {[%clk 0:01:10]} 21. Qe2 {[%clk 0:00:15]}  Nxb3 {[%clk 0:01:09]} 22. cxb3 {[%clk 0:00:16]}  Be6 {[%clk 0:01:09]} 23. Rc1 {[%clk 0:00:15]}  h5 {[%clk 0:01:06]} 24. Rdc2 {[%clk 0:00:13]}  Bd7 {[%clk 0:00:58]} 25. Qd3 {[%clk 0:00:13]}  Rd8 {[%clk 0:00:52]} 26. Qc3 {[%clk 0:00:13]}  Bf6 {[%clk 0:00:52]} 27. Nf1 {[%clk 0:00:12]}  O-O {[%clk 0:00:50]} 28. Ne3 {[%clk 0:00:12]}  Rc8 {[%clk 0:00:40]} 29. Nd5 {[%clk 0:00:10]}  cxd5 {[%clk 0:00:21]} 30. Qxc7 {[%clk 0:00:11]}  Rxc7 {[%clk 0:00:21]} 31. Rxc7 {[%clk 0:00:11]}  Bg4 {[%clk 0:00:22]} 32. Nd2 {[%clk 0:00:10]}  Bg5 {[%clk 0:00:21]} 33. R1c2 {[%clk 0:00:10]}  Bd1 {[%clk 0:00:20]} 34. exd5 {[%clk 0:00:08]}  Bxc2+ {[%clk 0:00:19]} 35. Rxc2 {[%clk 0:00:08]}  Rd8 {[%clk 0:00:19]} 36. Ne4 {[%clk 0:00:09]}  Be7 {[%clk 0:00:16]} 37. Rc7 {[%clk 0:00:09]}  Bb4 {[%clk 0:00:15]} 38. Rc6 {[%clk 0:00:09]}  Kg7 {[%clk 0:00:14]} 39. d6 {[%clk 0:00:08]}  Bxa5 {[%clk 0:00:13]} 40. Rxa6 {[%clk 0:00:09]}  Bb4 {[%clk 0:00:13]} 41. Kc2 {[%clk 0:00:09]}  f5 {[%clk 0:00:14]} 42. Ng5 {[%clk 0:00:08]}  Rxd6 {[%clk 0:00:12]} 43. Ra7+ {[%clk 0:00:08]}  Kf6 {[%clk 0:00:13]} 44. Nh7+ {[%clk 0:00:08]}  Ke6 {[%clk 0:00:13]} 45. Nf8+ {[%clk 0:00:09]}  Kd5 {[%clk 0:00:12]} 46. Nd7 {[%clk 0:00:07]}  Bc5 {[%clk 0:00:11]} 47. Rb7 {[%clk 0:00:06]}  Bxf2 {[%clk 0:00:10]} 48. Nf8 {[%clk 0:00:04]}  Ke4 {[%clk 0:00:09]} 49. Rxb5 {[%clk 0:00:04]}  Be3 {[%clk 0:00:09]} 50. Rb4+ {[%clk 0:00:03]}  Kf3 {[%clk 0:00:09]} 51. Rc4 {[%clk 0:00:03]}  Rd2+ {[%clk 0:00:09]} 52. Kc3 {[%clk 0:00:03]}  Rxh2 {[%clk 0:00:10]} 53. Nxg6 {[%clk 0:00:03]}  e4 {[%clk 0:00:10]} 54. Ne5+ {[%clk 0:00:03]}  Kf4 {[%clk 0:00:09]} 55. Ng6+ {[%clk 0:00:03]}  Kg5 {[%clk 0:00:09]} 56. Ne7 {[%clk 0:00:02]}  Rh3 {[%clk 0:00:09]} 57. Kb4 {[%clk 0:00:01]}  Rg3 {[%clk 0:00:07]} 0-1


[Site "https://www.chess.com"]